Workbook

Sheet 2016년 기관장 업무추진비
A1: 2016년 기관장 업무추진비
D2: (단위:원)
B3: 사용내역 | C3: 건수 | D3: 금액
A4: 1월 | B4: 소 계 | C4: =SUM(C5:C7) -> 23 | D4: =SUM(D5:D7) -> 1886000
B5: 업무추진 관련 간담회 | C5: 2 | D5: 636000
B6: 축의 및 부의금
B7: 경조사 및 유관기관 축화화분전달 | C7: 21 | D7: 1250000
A8: 2월 | B8: 소 계 | C8: =SUM(C10:C12) -> 5 | D8: =SUM(D9:D12) -> 2006700
B9: 명절 감사 선물 | D9: 1399200
B10: 업무추진 관련 간담회 | C10: 3 | D10: 407500
B11: 축의 및 부의금
B12: 경조사 및 유관기관 축화화분전달 | C12: 2 | D12: 200000
A13: 3월 | B13: 소 계 | C13: =SUM(C14:C16) -> 10 | D13: =SUM(D14:D16) -> 1091000
B14: 업무추진 관련 간담회 | C14: 3 | D14: 541000
B15: 축의 및 부의금
B16: 경조사 및 유관기관 축화화분전달 | C16: 7 | D16: 550000
A17: 4월 | B17: 소 계 | C17: =SUM(C18:C20) -> 12 | D17: =SUM(D18:D20) -> 998000
B18: 업무추진 관련 간담회 | C18: 2 | D18: 198000
B19: 축의 및 부의금
B20: 경조사 및 유관기관 축화화분전달 | C20: 10 | D20: 800000
A21: 5월 | B21: 소 계 | C21: =SUM(C22:C24) -> 13 | D21: =SUM(D22:D24) -> 1000000
B22: 업무추진 관련 간담회 | C22: 1 | D22: 50000
B23: 축의 및 부의금
B24: 경조사 및 유관기관 축화화분전달 | C24: 12 | D24: 950000
A25: 6월 | B25: 소 계 | C25: =SUM(C26:C28) -> 12 | D25: =SUM(D26:D28) -> 1284000
B26: 업무추진 관련 간담회 | C26: 4 | D26: 584000
B27: 축의 및 부의금
B28: 경조사 및 유관기관 축화화분전달 | C28: 8 | D28: 700000
A29: 7월 | B29: 소 계 | C29: =SUM(C30:C32) -> 16 | D29: =SUM(D30:D32) -> 900000
B30: 업무추진 관련 간담회
B31: 축의 및 부의금
B32: 경조사 및 유관기관 축화화분전달 | C32: 16 | D32: 900000
A33: 8월 | B33: 소 계 | C33: =SUM(C34:C36) -> 7 | D33: =SUM(D34:D36) -> 1030000
B34: 업무추진 관련 간담회 | C34: 4 | D34: 780000
B35: 축의 및 부의금
B36: 경조사 및 유관기관 축화화분전달 | C36: 3 | D36: 250000
A37: 9월 | B37: 소 계 | C37: =SUM(C38:C41) -> 71 | D37: =SUM(D38:D41) -> 2345000
B38: 업무추진 관련 간담회 | C38: 1 | D38: 185000
B39: 추석 명절 감사 선물 | C39: 68 | D39: 2010000
B40: 축의 및 부의금
B41: 경조사 및 유관기관 축화화분전달 | C41: 2 | D41: 150000
A42: 10월 | B42: 소 계 | C42: =SUM(C43:C45) -> 3 | D42: =SUM(D43:D45) -> 190000
B43: 업무추진 관련 간담회 | C43: 1 | D43: 40000
B44: 축의 및 부의금
B45: 경조사 및 유관기관 축화화분전달 | C45: 2 | D45: 150000
A46: 11월 | B46: 소 계 | C46: =SUM(C47:C49) -> 6 | D46: =SUM(D47:D49) -> 587000
B47: 업무추진 관련 간담회 | C47: 5 | D47: 487000
B48: 축의 및 부의금
B49: 경조사 및 유관기관 축화화분전달 | C49: 1 | D49: 100000
A50: 12월 | B50: 소 계 | C50: =SUM(C51:C53) -> 5 | D50: =SUM(D51:D53) -> 450000
B51: 업무추진 관련 간담회 | C51: 1 | D51: 150000
B52: 축의 및 부의금
B53: 경조사 및 유관기관 축화화분전달 | C53: 4 | D53: 300000
